[Event "Mitropa Cup Open 2024"]
[Site "Apolda"]
[Date "2024.02.22"]
[Round "8.6"]
[White "Peyrer, Konstantin"]
[Black "Turcan, Richard"]
[Result "1/2-1/2"]
[ECO "D46"]
[WhiteElo "2439"]
[BlackElo "2393"]
[Annotator "RC"]
[PlyCount "130"]
[EventDate "2024.02.15"]
[EventType "team-tourn"]
[EventCountry "GER"]
[SourceTitle "playchess.com"]
[Source "ChessBase"]
[SourceQuality "1"]
[WhiteTeam "Austria"]
[BlackTeam "Slovakia"]
[WhiteTeamCountry "AUT"]
[BlackTeamCountry "SVK"]
[TimeControl "40/5400+30:1800+30"]

1. d4 {[%emt 0:00:07]} d5 {[%emt 0:00:26]} 2. Nf3 {[%emt 0:00:12]} Nf6 {[%emt 0:00:07]} 3. c4 {[%emt 0:00:05]} c6 {[%emt 0:00:21]} 4. e3 {[%emt 0:00:10]} e6 {[%emt 0:01:04]} 5. Nc3 {[%emt 0:00:50]} Nbd7 {[%emt 0:00:14]} 6. Qc2 {[%emt 0:00:08]} Bd6 {[%emt 0:00:47]} 7. Bd3 {[%emt 0:00:22]} dxc4 {[%emt 0:00:46]} 8. Bxc4 {[%emt 0:00:06]} b5 {[%emt 0:00:09]} 9. Be2 {[%emt 0:00:05]} O-O {[%emt 0:01:27]} 10. O-O {[%emt 0:00:12]} Bb7 {[%emt 0:00:25]} 11. Bd2 {[%emt 0:00:10]} a6 {[%emt 0:04:26]} 12. e4 {[%emt 0:06:45]} e5 {[%emt 0:03:26]} 13. Rad1 {[%emt 0:19:07]} Qc7 {[%emt 0:10:11]} 14. Kh1 {[%emt 0:08:53]} exd4 {[%emt 0:08:55]} 15. Nxd4 {[%emt 0:00:30]} b4 {[%emt 0:00:47]} 16. Nf5 {[%emt 0:06:35]} bxc3 {[%emt 0:24:48]} 17. Bh6 {[%emt 0:00:10]} Ne8 {[%emt 0:12:59]} 18. Nxd6 {[%emt 0:01:50]} gxh6 {[%emt 0:00:32]} 19. Nf5 {[%emt 0:00:05]} Ng7 {[%emt 0:03:58]} 20. Nxh6+ {[%emt 0:02:05]} Kh8 {[%emt 0:00:09]} 21. Qxc3 {[%emt 0:00:12]} Rad8 {[%emt 0:07:36]} 22. f4 {[%emt 0:00:53]} c5 {[%emt 0:04:05]} 23. Bc4 {[%emt 0:02:28]} Bxe4 {[%emt 0:05:32]} 24. Nxf7+ {[%emt 0:00:39]} Rxf7 {[%emt 0:00:04]} 25. Bxf7 {[%emt 0:00:06]} Qc6 {[%emt 0:02:00]} 26. Rf2 {[%emt 0:10:56]} Rf8 {[%emt 0:00:54]} 27. Bc4 {[%emt 0:00:47]} Nf6 {[%emt 0:01:08]} 28. Rfd2 {[%emt 0:00:58]} Nf5 {[%emt 0:05:38]} 29. Bd5 {[%emt 0:01:11]} Bxd5 {[%emt 0:00:24]} 30. Rxd5 {[%emt 0:00:13]} Ne3 {[%emt 0:00:54]} 31. Qxe3 {[%emt 0:01:49]} Nxd5 {[%emt 0:00:01]} 32. Qe5+ {[%emt 0:00:19]} Nf6 {[%emt 0:00:06]} 33. Rd6 {[%emt 0:00:34]} Qe4 {[%emt 0:00:40]} 34. h3 {[%emt 0:00:07]} Qxe5 {[%emt 0:00:29]} 35. fxe5 {[%emt 0:00:05]} Ne4 {[%emt 0:00:26]} 36. Rxa6 {[%emt 0:00:05]} Re8 {[%emt 0:00:48]} 37. b4 {[%emt 0:01:22]} cxb4 {[%emt 0:01:06]} 38. Rb6 {[%emt 0:00:06]} Nf2+ {[%emt 0:00:58]} 39. Kh2 {[%emt 0:00:20]} Nd3 {[%emt 0:00:04]} 40. e6 {[%emt 0:00:06]} Kg7 {[%emt 0:00:58]} 41. a3 {[%emt 0:32:49]} bxa3 {[%emt 0:01:56]} 42. Ra6 {[%emt 0:00:00]} a2 {[%emt 0:06:38]} 43. Rxa2 {[%emt 0:00:00]} Rxe6 {[%emt 0:00:04]} 44. Ra3 {[%emt 0:00:00]} Re3 {[%emt 0:01:45]} 45. Ra7+ {[%emt 0:00:00]} Kg6 {[%emt 0:00:08]} 46. Ra3 {[%emt 0:00:00]} h5 {[%emt 0:01:29]} 47. Ra6+ {[%emt 0:00:00]} Kg5 {[%emt 0:00:39]} 48. Ra3 {[%emt 0:00:00]} h4 {[%emt 0:04:36]} 49. Rc3 {[%emt 0:00:00]} Rg3 {[%emt 0:02:17]} 50. Ra3 {[%emt 0:00:00]} Kf5 {[%emt 0:01:22]} 51. Ra5+ {[%emt 0:00:00]} Ne5 {[%emt 0:00:56]} 52. Ra4 {[%emt 0:00:00]} Kg5 {[%emt 0:00:13]} 53. Ra5 {[%emt 0:00:00]} Re3 {[%emt 0:00:20]} 54. Ra4 {[%emt 0:00:00]} Re2 {[%emt 0:01:04]} 55. Kg1 {[%emt 0:00:00]} Rc2 {[%emt 0:03:17]} 56. Re4 {[%emt 0:00:00]} Rc5 {[%emt 0:03:06]} 57. Kf2 {[%emt 0:00:00]} Rc2+ {[%emt 0:01:58]} 58. Kf1 {[%emt 0:00:00]} Nc4 {[%emt 0:01:49]} 59. Kg1 {[%emt 0:00:00]} Nd2 {[%emt 0:00:59]} 60. Rd4 {[%emt 0:00:00]} Ra2 {[%emt 0:00:58]} 61. Rb4 {[%emt 0:00:00]} Ra3 {[%emt 0:01:44]} 62. Rd4 {[%emt 0:00:00]} Nb1 {[%emt 0:00:44]} 63. Rd5+ {[%emt 0:00:00]} Kg6 {[%emt 0:00:23]} 64. Rd4 {[%emt 0:00:00]} Kg5 {[%emt 0:00:36]} 65. Rd5+ {[%emt 0:00:00]} Kg6 {[%emt 0:00:03]} 1/2-1/2

[Event "Mitropa Cup Open 2024"]
[Site "Apolda"]
[Date "2024.02.22"]
[Round "8.7"]
[White "Bochnicka, Vladimir"]
[Black "Morgunov, Marc"]
[Result "1-0"]
[ECO "C45"]
[WhiteElo "2398"]
[BlackElo "2368"]
[Annotator "RC"]
[PlyCount "119"]
[EventDate "2024.02.15"]
[EventType "team-tourn"]
[EventCountry "GER"]
[SourceTitle "playchess.com"]
[Source "ChessBase"]
[SourceQuality "1"]
[WhiteTeam "Slovakia"]
[BlackTeam "Austria"]
[WhiteTeamCountry "SVK"]
[BlackTeamCountry "AUT"]
[TimeControl "40/5400+30:1800+30"]

1. e4 {[%emt 0:00:02]} e5 {[%emt 0:00:17]} 2. Nf3 {[%emt 0:00:08]} Nc6 {[%emt 0:00:05]} 3. d4 {[%emt 0:00:05]} exd4 {[%emt 0:01:01]} 4. Nxd4 {[%emt 0:00:08]} Nf6 {[%emt 0:00:22]} 5. Nxc6 {[%emt 0:00:32]} bxc6 {[%emt 0:00:06]} 6. e5 {[%emt 0:00:06]} Qe7 {[%emt 0:00:25]} 7. Qe2 {[%emt 0:00:25]} Nd5 {[%emt 0:00:08]} 8. h4 {[%emt 0:00:20]} a5 {[%emt 0:01:03]} 9. c4 {[%emt 0:01:00]} Ba6 {[%emt 0:00:56]} 10. Nd2 {[%emt 0:01:06]} f6 {[%emt 0:02:29]} 11. g3 {[%emt 0:01:08]} Nb6 {[%emt 0:07:08]} 12. exf6 {[%emt 0:05:27]} gxf6 {[%emt 0:01:37]} 13. b3 {[%emt 0:02:48]} d5 {[%emt 0:09:07]} 14. Bb2 {[%emt 0:04:43]} Kf7 {[%emt 0:01:00]} 15. O-O-O {[%emt 0:04:31]} Qxe2 {[%emt 0:01:27]} 16. Bxe2 {[%emt 0:00:06]} h5 {[%emt 0:02:25]} 17. g4 {[%emt 0:27:23]} Re8 {[%emt 0:12:48]} 18. Bd3 {[%emt 0:01:00]} Nd7 {[%emt 0:19:38]} 19. g5 {[%emt 0:12:35]} Ne5 {[%emt 0:02:23]} 20. Bc2 {[%emt 0:00:32]} Ng4 {[%emt 0:10:25]} 21. f3 {[%emt 0:03:48]} Nf2 {[%emt 0:09:00]} 22. Rde1 {[%emt 0:00:23]} Bc5 {[%emt 0:03:00]} 23. Rhf1 {[%emt 0:04:08]} Rxe1+ {[%emt 0:02:42]} 24. Rxe1 {[%emt 0:00:05]} d4 {[%emt 0:00:02]} 25. b4 {[%emt 0:13:53]} Bxb4 {[%emt 0:03:14]} 26. Re2 {[%emt 0:03:07]} d3 {[%emt 0:06:06]} 27. Rxf2 {[%emt 0:00:10]} dxc2 {[%emt 0:00:41]} 28. Ne4 {[%emt 0:05:51]} Bxc4 {[%emt 0:02:55]} 29. Rxc2 {[%emt 0:00:13]} Bd5 {[%emt 0:01:14]} 30. Nxf6 {[%emt 0:00:17]} Rd8 {[%emt 0:00:37]} 31. Nxh5 {[%emt 0:03:58]} Bd6 {[%emt 0:00:39]} 32. Rg2 {[%emt 0:01:40]} Kg6 {[%emt 0:00:24]} 33. Nf6 {[%emt 0:01:58]} Bf4+ {[%emt 0:00:26]} 34. Kb1 {[%emt 0:01:11]} Bxf3 {[%emt 0:00:41]} 35. Rf2 {[%emt 0:00:23]} Rd3 {[%emt 0:00:03]} 36. Kc2 {[%emt 0:00:23]} Bg3 {[%emt 0:00:04]} 37. Rf1 {[%emt 0:01:08]} Re3 {[%emt 0:00:23]} 38. Bd4 {[%emt 0:01:58]} Ra3 {[%emt 0:00:38]} 39. Bb2 {[%emt 0:00:37]} Re3 {[%emt 0:01:41]} 40. Bd4 {[%emt 0:00:30]} Ra3 {[%emt 0:00:24]} 41. Bc5 {[%emt 0:13:48]} Bg2 {[%emt 0:07:23]} 42. h5+ {[%emt 0:05:16]} Kxg5 {[%emt 0:00:06]} 43. Bxa3 {[%emt 0:00:19]} Bxf1 {[%emt 0:00:05]} 44. Ne4+ {[%emt 0:00:07]} Kf4 {[%emt 0:00:16]} 45. Nxg3 {[%emt 0:01:21]} Kxg3 {[%emt 0:00:05]} 46. h6 {[%emt 0:00:08]} Bh3 {[%emt 0:00:12]} 47. Kb3 {[%emt 0:00:31]} Bf5 {[%emt 0:00:37]} 48. Ka4 {[%emt 0:00:23]} Kf4 {[%emt 0:01:31]} 49. Kxa5 {[%emt 0:00:06]} Bd3 {[%emt 0:01:13]} 50. Bb2 {[%emt 0:03:23]} Kg5 {[%emt 0:00:54]} 51. Bg7 {[%emt 0:00:05]} Kg6 {[%emt 0:00:35]} 52. Kb4 {[%emt 0:00:08]} Kf7 {[%emt 0:00:55]} 53. Kc5 {[%emt 0:00:26]} Be4 {[%emt 0:00:54]} 54. Be5 {[%emt 0:00:06]} Ke6 {[%emt 0:00:03]} 55. Bxc7 {[%emt 0:00:11]} Kd7 {[%emt 0:00:05]} 56. Kb6 {[%emt 0:00:05]} c5 {[%emt 0:00:24]} 57. a4 {[%emt 0:00:21]} c4 {[%emt 0:03:08]} 58. a5 {[%emt 0:00:08]} c3 {[%emt 0:01:28]} 59. a6 {[%emt 0:00:06]} c2 {[%emt 0:00:21]} 60. Bf4 {[%emt 0:00:06]} 1-0

[Event "Mitropa Cup Open 2024"]
[Site "Apolda"]
[Date "2024.02.22"]
[Round "8.9"]
[White "Plenca, Jadranko"]
[Black "Moroni, Luca Jr"]
[Result "1/2-1/2"]
[ECO "B30"]
[WhiteElo "2429"]
[BlackElo "2601"]
[Annotator "TA"]
[PlyCount "71"]
[EventDate "2024.02.15"]
[EventType "team-tourn"]
[EventCountry "GER"]
[SourceTitle "playchess.com"]
[Source "ChessBase"]
[SourceQuality "1"]
[WhiteTeam "Croatia"]
[BlackTeam "Italy"]
[WhiteTeamCountry "CRO"]
[BlackTeamCountry "ITA"]
[TimeControl "40/5400+30:1800+30"]

{[%evp 9,71,0,-3,-21,-25,-19,-21,-24,-5,-27,-4,-8,0,7,16,0,4,-2,0,-31,-28,-27,17,4,47,37,37,41,77,67,147,140,154,137,166,30,127,168,401,295,286,293,290,268,268,229,152,16,213,215,217,219,207,215,215,204,217,89,97,95,89,83,68,42]} 1. e4 {[%emt 0:00:04]} c5 {[%emt 0:00:04]} 2. Nf3 {[%emt 0:00:23]} Nc6 {[%emt 0:00:04]} 3. Bb5 {[%emt 0:00:18]} Qc7 {[%emt 0:00:04]} 4. c3 {[%emt 0:08:35]} a6 {[%emt 0:07:17]} 5. Ba4 {[%emt 0:00:32]} Nf6 {[%emt 0:02:50]} 6. Bc2 {[%emt 0:14:04]} d5 {[%emt 0:07:14]} 7. exd5 {[%emt 0:00:23]} Nxd5 {[%emt 0:00:05][%cal Bf6d5,Bd5b6,Bb6c4][%mdl 32]} 8. h3 {[%emt 0:06:13] Prevents Bg4. The position is equal.} g6 {[%emt 0:08:07]} 9. O-O {[%emt 0:08:59]} Bg7 {[%emt 0:01:35]} 10. Bb3 {[%emt 0:07:57]} Nb6 {[%emt 0:07:35]} 11. d4 {[%emt 0:02:25]} cxd4 {[%emt 0:05:50]} 12. cxd4 {[%emt 0:00:04]} O-O {[%emt 0:00:44]} 13. Nc3 {[%emt 0:01:06]} Rd8 {[%emt 0:09:16][%cal Oc8f5]} 14. Be3 {[%emt 0:04:05]} (14. Re1 $5) 14... Na5 {[%emt 0:06:50]} 15. Rc1 {[%emt 0:02:14][%cal Oc3b5]} Nbc4 {[%emt 0:11:52]} 16. Bg5 {[%emt 0:12:55][%cal Be3g5,Bg5h4,Bh4g3][%mdl 32]} h6 {[%emt 0:14:32]} (16... Nxb2 $2 17. Nd5 Qb8 18. Nxe7+ Kh8 19. Qc2 Nxb3 20. Qxb3 $18 (20. axb3 Be6 $18)) 17. Bh4 {[%emt 0:00:26] Strongly threatening Bxc4.} b5 {[%emt 0:01:40]} (17... Nxb2 $2 18. Nd5 Qd6 19. Nxe7+ Kh8 20. Nxc8 Rdxc8 21. Qe2 Nxb3 22. axb3 $18) 18. Re1 {[%emt 0:04:23]} g5 {[%emt 0:00:52]} 19. Bg3 {[%emt 0:00:09]} Qa7 {[%emt 0:00:11]} (19... Qd7 $1 $14) 20. Bxc4 $1 $16 {[%emt 0:05:45]} Nxc4 {[%emt 0:01:25]} 21. b3 $36 {[%emt 0:01:41][%mdl 2048] White has strong initiative.} Nb6 {[%emt 0:01:47] [#]} 22. Qe2 {[%emt 0:00:54]} (22. Ne5 $1 $18 {[%cal Re5c6] Threatens to win with Nc6.} Bd7 23. h4 gxh4 24. Bf4 (24. Bxh4 Be8 $16)) 22... Bb7 {[%emt 0:04:16] [#]} (22... Bf5 $1 $11 {remains equal.}) 23. Ne5 $1 {[%emt 0:01:24][%cal Oe5f7] Nxf7! would now be deadly.} Nd5 $2 {[%emt 0:04:34]} (23... Rxd4 24. Nxf7 Kxf7 25. Qe6+ Kf8 26. Be5) (23... Nc8) 24. Qh5 {[%emt 0:01:39]} Rf8 {[%emt 0:00:39]} 25. Nxd5 {[%emt 0:00:37]} Bxd5 {[%emt 0:00:03]} 26. Ng4 {[%emt 0:00:06]} Kh7 {[%emt 0:01:46][%cal Bg8h7,Bh7g6,Bg6g7][%mdl 32]} 27. Rc7 {[%emt 0:01:25]} Qxd4 {[%emt 0:01:03]} 28. Rexe7 {[%emt 0:02:02]} (28. Rcxe7 $16 {Be5 is the strong threat.} Ra7 29. Nxh6 Bxh6 30. Rd1 Qxd1+ 31. Qxd1 Rxe7 32. Bd6 (32. Qxd5 Rfe8 $16)) 28... Qb6 $2 {[%emt 0:00:42]} (28... Rac8 $1 $11) 29. Be5 $18 {[%emt 0:04:32]} Qg6 {[%emt 0:01:14] Black is weak on the dark squares} 30. Qxg6+ {[%emt 0:00:50]} Kxg6 {[%emt 0:00:01]} 31. Bxg7 {[%emt 0:00:33]} Kxg7 {[%emt 0:00:01]} 32. Ne3 {[%emt 0:01:01]} Rad8 {[%emt 0:00:01]} 33. Ra7 {[%emt 0:00:36]} (33. Re5 $18 Ba8 34. Re6) 33... Kg6 {[%emt 0:01:53]} 34. Rxa6+ {[%emt 0:00:32]} Be6 {[%emt 0:00:02]} 35. Rb7 {[%emt 0:01:53] White is more active.} Ra8 {[%emt 0:00:23]} 36. Rxa8 {[%emt 0:07:45] Weighted Error Value: White=0.23 (precise) /Black=0.38.  Loses game:     	---       	Black=1      Mistake:       	White=3     	Black=3      Inaccurate:     	White=2     	Black=3      OK:         	White=12    	Black=8      Best:        	White=2     	Black=3      Strong:       	White=2     	---} 1/2-1/2

[Event "Mitropa Cup Open 2024"]
[Site "Apolda"]
[Date "2024.02.22"]
[Round "8.10"]
[White "Brunello, Sabino"]
[Black "Ivekovic, Bozidar"]
[Result "1-0"]
[ECO "E11"]
[WhiteElo "2512"]
[BlackElo "2399"]
[Annotator "TA"]
[PlyCount "61"]
[EventDate "2024.02.15"]
[EventType "team-tourn"]
[EventCountry "GER"]
[SourceTitle "playchess.com"]
[Source "ChessBase"]
[SourceQuality "1"]
[WhiteTeam "Italy"]
[BlackTeam "Croatia"]
[WhiteTeamCountry "ITA"]
[BlackTeamCountry "CRO"]
[TimeControl "40/5400+30:1800+30"]

{[%evp 10,61,10,16,31,26,20,-16,0,0,25,14,43,6,64,68,81,68,82,73,116,114,108,121,133,111,144,144,129,118,202,204,185,179,198,168,168,152,160,137,177,151,264,272,301,291,365,393,395,421,554,557,547,536]} 1. d4 {[%emt 0:00:05]} Nf6 {[%emt 0:00:06]} 2. c4 {[%emt 0:00:20]} e6 {[%emt 0:00:05]} 3. Nf3 {[%emt 0:00:32]} Bb4+ {[%emt 0:00:19]} 4. Nbd2 {[%emt 0:00:23]} O-O {[%emt 0:00:07]} 5. a3 {[%emt 0:00:22]} Be7 {[%emt 0:00:10]} 6. e4 {[%emt 0:00:56]} d6 {[%emt 0:00:05][%cal Oe6e5]} 7. Bd3 {[%emt 0:03:47]} e5 {[%emt 0:00:07]} 8. b3 {[%emt 0:00:29]} exd4 {[%emt 0:10:10] The position is equal.} 9. Nxd4 {[%emt 0:00:20]} Ng4 {[%emt 0:00:08][%cal Bf6g4,Bg4e5,Be5g6][%mdl 32]} 10. Ra2 {[%emt 0:15:37]} Bf6 {[%emt 0:01:34]} 11. Ne2 {[%emt 0:03:54]} c6 {[%emt 0:10:08]} ({Black should try} 11... Bh4 $11 12. g3 Bf6) 12. O-O $14 {[%emt 0:07:16]} Qb6 {[%emt 0:07:27] White leaves nothing to chance now.} 13. h3 {[%emt 0:10:04]} Ne5 {[%emt 0:00:33]} ({Don't blunder} 13... Ne3 $2 14. fxe3 (14. c5 Nxd1 15. cxb6 Nc3 $14) 14... Nd7 (14... Qxe3+ $2 {too greedy.} 15. Kh1 $18) 15. Nf3 $18) 14. Bb1 {[%emt 0:03:16]} Nbd7 {[%emt 0:14:59]} 15. Kh1 {[%emt 0:10:00]} a5 {[%emt 0:04:24]} 16. f4 {[%emt 0:04:24]} Ng6 {[%emt 0:00:05] [#]} 17. Ng3 $1 {[%emt 0:00:59]} Nc5 {[%emt 0:08:50]} 18. Nh5 {[%emt 0:15:58]} Be7 {[%emt 0:00:10]} 19. Qf3 {[%emt 0:06:35]} f5 {[%emt 0:03:13]} (19... Kh8 $16 20. Bb2 f6) 20. Bb2 $18 {[%emt 0:02:24]} fxe4 {[%emt 0:00:31]} 21. Nxe4 $40 {[%emt 0:03:19][%mdl 128] White attacks with force.} Qxb3 {[%emt 0:03:00]} 22. Nxc5 {[%emt 0:02:12]} Qxf3 {[%emt 0:00:03]} 23. Rxf3 {[%emt 0:00:10][%cal Ob2g7]} dxc5 {[%emt 0:00:03]} 24. Bxg7 {[%emt 0:00:16] White is more active.} Rd8 {[%emt 0:05:31]} 25. Bc2 {[%emt 0:03:52] Against Rd1+. f5 is the strong threat.} Kf7 {[%emt 0:09:00]} (25... Be6 $16 {was worth a try.}) 26. f5 {[%emt 0:01:17]} Nh4 {[%emt 0:00:12]} 27. Rf2 {[%emt 0:00:31]} Bd6 {[%emt 0:01:59]} 28. Ra1 {[%emt 0:01:36]} Re8 {[%emt 0:03:14]} 29. Rd1 {[%emt 0:01:11]} Bg3 {[%emt 0:00:59]} 30. Nxg3 {[%emt 0:00:22]} Kxg7 {[%emt 0:00:04]} 31. Rf4 {[%emt 0:00:30] Weighted Error Value: White=0.06 (flawless) /Black=0.37.  Mistake:       	---       	Black=3      Inaccurate:     	White=2     	Black=3      OK:         	White=11    	Black=6      Best:        	White=4     	Black=3} 1-0

[Event "Mitropa Cup Open 2024"]
[Site "Apolda"]
[Date "2024.02.22"]
[Round "8.11"]
[White "Tomulic, Teo"]
[Black "David, Alberto"]
[Result "0-1"]
[ECO "B67"]
[WhiteElo "2386"]
[BlackElo "2525"]
[Annotator "TA"]
[PlyCount "74"]
[EventDate "2024.02.15"]
[EventType "team-tourn"]
[EventCountry "GER"]
[SourceTitle "playchess.com"]
[Source "ChessBase"]
[SourceQuality "1"]
[WhiteTeam "Croatia"]
[BlackTeam "Italy"]
[WhiteTeamCountry "CRO"]
[BlackTeamCountry "ITA"]
[TimeControl "40/5400+30:1800+30"]

{[%evp 18,74,18,33,30,18,25,26,34,0,0,-2,-10,-15,-23,0,58,51,54,60,79,0,0,0,8,0,0,0,0,0,0,0,0,0,0,-100,-89,-203,0,-48,-58,-55,-55,-55,-75,-71,-93,-83,-87,-730,-566,-29990,-29991,-29993,-29991,-29993,-29994,-29994,-29995]} 1. e4 {[%emt 0:00:02]} c5 {[%emt 0:00:11]} 2. Nf3 {[%emt 0:00:05]} d6 {[%emt 0:00:07]} 3. d4 {[%emt 0:00:05]} cxd4 {[%emt 0:00:05]} 4. Nxd4 {[%emt 0:00:04]} Nf6 {[%emt 0:00:05]} 5. Nc3 {[%emt 0:00:04]} Nc6 {[%emt 0:00:05]} 6. Bg5 {[%emt 0:00:18]} e6 {[%emt 0:00:13]} 7. Qd2 {[%emt 0:00:33]} a6 {[%emt 0:00:23]} 8. f3 {[%emt 0:00:22]} Bd7 {[%emt 0:07:13]} 9. O-O-O {[%emt 0:00:53]} Nxd4 {[%emt 0:05:11]} 10. Qxd4 {[%emt 0:00:06]} Be7 {[%emt 0:00:02]} 11. Bxf6 {[%emt 0:13:01]} gxf6 {[%emt 0:02:57]} 12. f4 {[%emt 0:00:55]} Qc7 {[%emt 0:03:39] White has an edge.} 13. Bc4 {[%emt 0:01:33][%cal Of4f5]} b5 {[%emt 0:06:37]} 14. Bb3 {[%emt 0:00:48][%cal Of4f5]} Qc5 {[%emt 0:00:16]} 15. Qd3 {[%emt 0:00:53][%cal Of4f5]} b4 {[%emt 0:20:08]} 16. Nb1 {[%emt 0:01:49]} Bb5 {[%emt 0:03:18]} ({Black should try} 16... Rb8 $11) 17. Qh3 $14 {[%emt 0:02:49]} h5 {[%emt 0:13:27]} 18. f5 {[%emt 0:08:37]} e5 {[%emt 0:00:19]} 19. a3 {[%emt 0:06:19]} (19. a4 $16 bxa3 20. Nxa3) 19... Bf8 $11 {[%emt 0:04:31]} 20. Rd5 {[%emt 0:15:00]} Bh6+ {[%emt 0:00:16]} 21. Kd1 {[%emt 0:00:05]} Qf2 {[%emt 0:02:15]} 22. Qf3 {[%emt 0:00:20] Against Qe2+} Qxf3+ {[%emt 0:05:30]} 23. gxf3 {[%emt 0:00:10]} Rg8 {[%emt 0:03:46]} 24. axb4 {[%emt 0:02:12][%cal Od1e1]} (24. a4 Bc6 25. Rxd6 Rd8 26. Rxd8+ Kxd8 27. Bxf7 Rg7 (27... Rg2 28. b3 $15) 28. Bxh5 Bxa4 $19) 24... Rg2 $40 {[%emt 0:00:06][%mdl 128] Black has some attack.} 25. Nc3 {[%emt 0:00:04] Wards off Be2+} (25. Rxd6 Ke7 26. Rd5 Rag8 (26... Be2+ 27. Ke1 $15) 27. Rxb5 axb5 $19) 25... Ke7 {[%emt 0:00:06]} 26. Ke1 {[%emt 0:05:17] [#]} (26. Nxb5 axb5 27. Ke1 Ra1+ 28. Rd1 Rxd1+ 29. Kxd1 h4 $19) (26. h4 $1 $11) 26... h4 $1 $17 {[%emt 0:05:37] Strongly threatening ...h3. Black is much more active.} 27. Rd1 {[%emt 0:12:21]} (27. Nxb5 $17 axb5 28. h3) 27... Rc8 $2 {[%emt 0:04:11]} (27... h3 $19 28. f4 exf4 (28... Bxf4 $2 29. Nd5+ Kf8 30. Nxf4 $19)) 28. Nxb5 {[%emt 0:06:23]} (28. h3 $1 $11) 28... axb5 $15 {[%emt 0:00:04]} 29. h3 {[%emt 0:00:31] White is weak on the dark squares} Rcg8 {[%emt 0:05:33][%cal Bc8g8,Bg8g3,Bg3f3][%mdl 32]} 30. Rd5 {[%emt 0:02:31]} R8g3 {[%emt 0:05:00]} 31. Rxb5 {[%emt 0:02:57]} Rxf3 {[%emt 0:00:07] ...Rf4 would now be deadly.} 32. Rb7+ {[%emt 0:09:44]} Kd8 {[%emt 0:00:08][%mdl 1024] Black has strong compensation.} 33. b5 $2 {[%emt 0:08:04][%mdl 8192] [#] Now White is beyond hope.} (33. Ba4 $17) 33... Re3+ $19 {[%emt 0:03:16]} 34. Kf1 {[%emt 0:00:01]} Ree2 {[%emt 0:00:11] Black mates.} 35. b6 {[%emt 0:00:37]} Rgf2+ {[%emt 0:00:24]} 36. Kg1 {[%emt 0:00:01]} Be3 {[%emt 0:00:50][%cal Re2e1]} 37. Rb8+ {[%emt 0:00:27]} Ke7 {[%emt 0:00:07] Weighted Error Value: White=0.60/Black=0.13 (very precise) .  Loses game:     	White=1     	---        Missed win:     	---       	Black=1      Mistake:       	White=4     	Black=1      Inaccurate:     	White=2     	---        OK:         	White=8     	Black=12     Best:        	White=3     	Black=2      Strong:       	---       	Black=1} 0-1